fUST/lending_fUST_20240918
["ID","MTS","AMOUNT","RATE_DAILY","PERIOD"]
[338419278,1726625445717,-500.0,0.00021917,2]
[338419279,1726625445734,-504.05089004,0.00021917,2]
[338419280,1726625445744,-500.70892798,0.00021917,2]
[338419281,1726625445755,-500.0,0.00021917,2]
[338419282,1726625445766,-500.0,0.00021917,2]
[338419284,1726625445777,-500.0,0.00021917,2]
[338419286,1726625445788,-247.6,0.00021917,2]
[338419288,1726625445801,-567.37,0.00021917,2]
[338419291,1726625445811,-500.0,0.00021917,2]
[338419293,1726625445822,-500.0,0.00021917,2]
[338419295,1726625445832,-500.0,0.00021917,2]
[338419297,1726625445843,-607.55,0.00021917,2]
[338419299,1726625445852,-1071.85,0.00021917,2]
[338419301,1726625445862,-500.0,0.00021917,2]
[338419303,1726625445873,-500.0,0.00021917,2]
[338419305,1726625445883,-500.0,0.00021917,2]
[338419307,1726625445894,-505.45031568,0.00021917,2]
[338419309,1726625445904,-500.0,0.00021917,2]
[338419311,1726625445914,-500.0,0.00021917,2]
[338419313,1726625445924,-500.0,0.00021917,2]
[338419316,1726625445938,-3961.45,0.00021917,2]
[338419318,1726625445949,-1089.33,0.00021917,2]
[338419320,1726625445959,-1104.98,0.00021917,2]
[338419322,1726625445970,-151.0,0.00021917,2]
[338419324,1726625445981,-151.0,0.00021917,2]
[338419326,1726625445991,-500.0,0.00021917,2]
[338419328,1726625446000,-764.01,0.00021917,2]
[338419330,1726625446010,-685.15,0.00021917,2]
[338419332,1726625446021,-521.84,0.00021917,2]
[338419335,1726625446031,-729.33,0.00021917,2]
[338419337,1726625446045,-500.0,0.00021917,2]
[338419339,1726625446055,-151.0,0.00021917,2]
[338419341,1726625446066,-151.0,0.00021917,2]
[338419344,1726625446078,-151.0,0.00021917,2]
[338419346,1726625446089,-151.0,0.00021917,2]
[338419348,1726625446099,-500.0,0.00021917,2]
[338419350,1726625446109,-82747.46,0.00021917,2]
[338419352,1726625446119,-773.9,0.00021917,2]
[338419353,1726625446129,-151.0,0.00021917,2]
[338419354,1726625446139,-500.0,0.00021917,2]
[338419356,1726625446150,-151.0,0.00021917,2]
[338419358,1726625446159,-500.0,0.00021917,2]
[338419359,1726625446170,-4590.43,0.00021917,2]
[338419360,1726625446180,-151.0,0.00021917,2]
[338419361,1726625446190,-151.0,0.00021917,2]
[338419362,1726625446200,-859.04,0.00021917,2]
[338419363,1726625446210,-500.0,0.00021917,2]
[338419364,1726625446220,-627.1,0.00021917,2]
[338419365,1726625446230,-1250.46,0.00021917,2]
[338419366,1726625446241,-500.0,0.00021917,2]
[338419367,1726625446251,-500.0,0.00021917,2]
[338419368,1726625446261,-500.0,0.00021917,2]
[338419369,1726625446272,-1063.04,0.00021917,2]
[338419370,1726625446281,-610.27,0.00021917,2]
[338419371,1726625446291,-151.0,0.00021917,2]
[338419372,1726625446301,-151.0,0.00021917,2]
[338419373,1726625446311,-151.0,0.00021917,2]
[338419374,1726625446320,-264.603723,0.00021917,2]
[338419375,1726625446330,-5696.11354658,0.00021917,2]
[338419376,1726625446826,-3238.4541474,0.00021917,2]
[338419377,1726625446840,-1138.69230602,0.00021917,2]
[338419378,1726625446850,-151.0,0.00021917,2]
[338419379,1726625446860,-1766.98,0.00021917,2]
[338419380,1726625446871,-151.0,0.00021917,2]
[338419381,1726625446883,-500.0,0.00021917,2]
[338419382,1726625446896,-500.0,0.00021917,2]
[338419383,1726625446905,-909.57,0.00021917,2]
[338419384,1726625446915,-151.0,0.00021917,2]
[338419385,1726625446925,-733.54,0.00021917,2]
[338419386,1726625446939,-175.157472,0.00021917,2]
[338419387,1726625446950,-500.0,0.00021917,2]
[338419388,1726625446959,-500.0,0.00021917,2]
[338419389,1726625446971,-841.01,0.00021917,2]
[338419390,1726625446983,-151.0,0.00021917,2]
[338419391,1726625446996,-151.0,0.00021917,2]
[338419392,1726625447007,-151.0,0.00021917,2]
[338419393,1726625447017,-151.0,0.00021917,2]
[338419394,1726625447028,-500.0,0.00021917,2]
[338419395,1726625447038,-500.0,0.00021917,2]
[338419396,1726625447049,-2539.82,0.00021917,2]
[338419397,1726625447059,-151.0,0.00021917,2]
[338419398,1726625447069,-151.0,0.00021917,2]
[338419399,1726625447079,-151.0,0.00021917,2]
[338419400,1726625447098,-500.0,0.00021917,2]
[338419401,1726625447109,-866.12,0.00021917,2]
[338419402,1726625447121,-151.0,0.00021917,2]
[338419403,1726625447132,-502.74161831,0.00021917,2]
[338419404,1726625447146,-151.0,0.00021917,2]
[338419405,1726625447157,-151.0,0.00021917,2]
[338419406,1726625447169,-151.0,0.00021917,2]
[338419407,1726625447180,-500.0,0.00021917,2]
[338419408,1726625447191,-151.0,0.00021917,2]
[338419409,1726625447202,-500.93578866,0.00021917,2]
[338419410,1726625447213,-501.01206059,0.00021917,2]
[338419411,1726625447223,-2071.16,0.00021917,2]
[338419412,1726625447235,-1775.83,0.00021917,2]
[338419413,1726625447246,-500.0,0.00021917,2]
[338419414,1726625447258,-500.0,0.00021917,2]
[338419415,1726625447270,-517.12214205,0.00021917,2]
[338419416,1726625447281,-500.0,0.00021917,2]
[338419417,1726625447291,-151.0,0.00021917,2]
[338419418,1726625447301,-151.0,0.00021917,2]
[338419419,1726625447312,-151.0,0.00021917,2]
[338419420,1726625447322,-752.64,0.00021917,2]
[338419421,1726625447332,-151.0,0.00021917,2]
[338419422,1726625447343,-500.0,0.00021917,2]
[338419423,1726625447355,-678.22,0.00021917,2]
[338419424,1726625447366,-151.0,0.00021917,2]
[338419425,1726625447378,-500.0,0.00021917,2]
[338419426,1726625447389,-151.0,0.00021917,2]
[338419427,1726625447402,-151.0,0.00021917,2]
[338419428,1726625447412,-500.0,0.00021917,2]
[338419429,1726625447421,-151.0,0.00021917,2]
[338419430,1726625447432,-500.0,0.00021917,2]
[338419431,1726625447443,-502.78106489,0.00021917,2]
[338419432,1726625447454,-505.83950733,0.00021917,2]
[338419433,1726625447465,-751.35,0.00021917,2]
[338419434,1726625447683,-915.5,0.00021917,2]
[338419435,1726625447745,-777.57,0.00021917,2]
[338419436,1726625447755,-500.62496475,0.00021917,2]
[338419437,1726625447766,-500.0,0.00021917,2]
[338419438,1726625447778,-1816.97,0.00021917,2]
[338419439,1726625447788,-564.57,0.00021917,2]
[338419440,1726625447798,-500.0,0.00021917,2]
[338419441,1726625447808,-500.0,0.00021917,2]
[338419442,1726625447817,-500.0,0.00021917,2]
[338419443,1726625447826,-500.0,0.00021917,2]
[338419444,1726625447837,-500.0,0.00021917,2]
[338419445,1726625447848,-500.0,0.00021917,2]
[338419446,1726625447859,-500.0,0.00021917,2]
[338419447,1726625447870,-500.0,0.00021917,2]
[338419448,1726625447882,-500.0,0.00021917,2]
[338419449,1726625447894,-339.712983,0.00021917,2]
[338419450,1726625447904,-154.487561,0.00021917,2]
[338419451,1726625447915,-500.0,0.00021917,2]
[338419452,1726625447925,-339.712983,0.00021917,2]
[338419453,1726625447939,-500.0,0.00021917,2]
[338419454,1726625447951,-500.0,0.00021917,2]
[338419455,1726625447961,-339.712983,0.00021917,2]
[338419456,1726625447972,-500.0,0.00021917,2]
[338419457,1726625447984,-500.0,0.00021917,2]
[338419458,1726625447993,-500.0,0.00021917,2]
[338419459,1726625448003,-339.712983,0.00021917,2]
[338419460,1726625448014,-500.0,0.00021917,2]
[338419461,1726625448023,-500.0,0.00021917,2]
[338419462,1726625448032,-500.0,0.00021917,2]
[338419463,1726625448042,-500.0,0.00021917,2]
[338419464,1726625448051,-500.0,0.00021917,2]
[338419465,1726625448064,-500.0,0.00021917,2]
[338419466,1726625448075,-264.25024083,0.00021917,2]
[338419467,1726625448086,-500.0,0.00021917,2]
[338419468,1726625448097,-500.0,0.00021917,2]
[338419469,1726625448106,-1110.86,0.00021917,2]
[338419470,1726625448116,-339.712983,0.00021917,2]
[338419471,1726625448128,-339.712983,0.00021917,2]
[338419472,1726625448137,-339.712983,0.00021917,2]
[338419473,1726625448149,-500.0,0.00021917,2]
[338419474,1726625448159,-339.712983,0.00021917,2]
[338419475,1726625448169,-459.85979161,0.00021917,2]
[338419476,1726625448179,-1317.98,0.00021917,2]
[338419477,1726625448190,-500.0,0.00021917,2]
[338419478,1726625448201,-201.898511,0.00021917,2]
[338419479,1726625448211,-1677.79,0.00021917,2]
[338419480,1726625448222,-750.05,0.00021917,2]
[338419481,1726625448232,-500.0,0.00021917,2]
[338419482,1726625448242,-201.898511,0.00021917,2]
[338419483,1726625448251,-201.898511,0.00021917,2]
[338419484,1726625448260,-201.898511,0.00021917,2]
[338419485,1726625448270,-6039.57,0.00021917,2]
[338419486,1726625448280,-500.0,0.00021917,2]
[338419487,1726625448292,-349.68432072,0.00021917,2]
[338419488,1726625448310,-712.27567928,0.00021917,2]
[338419489,1726625448321,-903.84,0.00021917,2]
[338419490,1726625448331,-500.0,0.00021917,2]
[338419491,1726625448341,-201.898511,0.00021917,2]
[338419492,1726625448351,-201.898511,0.00021917,2]
[338419493,1726625448360,-201.898511,0.00021917,2]
[338419494,1726625448370,-201.898511,0.00021917,2]
[338419495,1726625448380,-500.0,0.00021917,2]
[338419496,1726625448389,-500.0,0.00021917,2]
[338419497,1726625448400,-500.0,0.00021917,2]
[338419498,1726625448412,-500.0,0.00021917,2]
[338419499,1726625448422,-3463.17783429,0.00021917,2]
[338419500,1726625448434,-501.98208771,0.00021917,2]
[338419501,1726625448446,-317.79355,0.00021917,2]
[338419502,1726625449191,-5859.916528,0.00021917,2]
[338419503,1726625449201,-500.0,0.00021917,2]
[338419504,1726625449213,-2784.65176824,0.00021917,2]
[338419505,1726625449224,-7895.11040745,0.00021917,2]
[338419507,1726625521073,4398.0707375,0.000141,2]
[338419508,1726625522041,-3701.9292625,0.000141,2]
[338419517,1726626406941,-500.0,0.00025,120]
[338419584,1726626632417,-300.0,0.00019145,2]
[338419585,1726626632427,-300.0,0.00019145,2]
[338419586,1726626632438,-98.46174005,0.00019146,2]
[338419587,1726626632451,-342.422611,0.00019146,2]
[338419597,1726626638044,-24459.11564895,0.00019146,2]
[338419598,1726626638054,-1767.921787,0.00019165,2]
[338419599,1726626638066,-678.44,0.00019168,3]
[338419601,1726626638084,-339.22,0.00019168,3]
[338419602,1726626638094,-169.61,0.00019168,3]
[338419603,1726626638104,-201.56158046,0.00019177,2]
[338419604,1726626638115,-500.0,0.00019177,2]
[338419605,1726626638124,-434.39437592,0.00019177,2]
[338419606,1726626638134,-500.0,0.00019178,2]
[338419607,1726626638142,-500.0,0.00019178,2]
[338419608,1726626638151,-500.85771633,0.00019178,2]
[338419609,1726626638161,-1095.0,0.00019178,2]
[338419610,1726626638170,-500.0,0.00019178,2]
[338419611,1726626638179,-824.77,0.00019178,2]
[338419612,1726626638188,-501.59385982,0.00019178,2]
[338419613,1726626638197,-500.0,0.00019178,2]
[338419614,1726626638206,-590.68,0.00019178,2]
[338419615,1726626638217,-500.0,0.00019178,2]
[338419616,1726626638228,-500.0,0.00019178,2]
[338419617,1726626638237,-1513.88,0.00019178,2]
[338419618,1726626638246,-500.0,0.00019178,2]
[338419619,1726626638255,-500.0,0.00019178,2]
[338419620,1726626638264,-548.11545847,0.00019178,2]
[338419621,1726626638273,-641.66,0.00019178,2]
[338419622,1726626638282,-500.0,0.00019178,2]
[338419623,1726626638291,-3114.76,0.00019178,2]
[338419624,1726626638300,-1897.23,0.00019178,2]
[338419625,1726626638309,-2673.28,0.00019178,2]
[338419626,1726626638327,-1732.79,0.00019178,2]
[338419627,1726626638338,-500.0,0.00019178,2]
[338419628,1726626638347,-86345.18,0.00019178,2]
[338419629,1726626638356,-1318.86,0.00019178,2]
[338419630,1726626638366,-500.0,0.00019178,2]
[338419631,1726626638375,-938.63,0.00019178,2]
[338419632,1726626638386,-2145.47,0.00019178,2]
[338419633,1726626638397,-563.27,0.00019178,2]
[338419634,1726626638407,-761.25,0.00019178,2]
[338419635,1726626638416,-500.0,0.00019178,2]
[338419636,1726626638425,-500.0,0.00019178,2]
[338419637,1726626638434,-500.0,0.00019178,2]
[338419638,1726626638443,-500.0,0.00019178,2]
[338419639,1726626638452,-1100.65,0.00019178,2]
[338419640,1726626638463,-2100.33,0.00019178,2]
[338419641,1726626638472,-500.0,0.00019178,2]
[338419642,1726626638483,-811.62,0.00019178,2]
[338419643,1726626638494,-1170.35,0.00019178,2]
[338419644,1726626638504,-195.20363896,0.00019178,2]
[338419645,1726626638514,-677.29,0.00019178,2]
[338419646,1726626638523,-500.0,0.00019178,2]
[338419647,1726626638532,-500.0,0.00019178,2]
[338419648,1726626638541,-914.74,0.00019178,2]
[338419649,1726626638551,-2102.86,0.00019178,2]
[338419650,1726626638562,-500.0,0.00019178,2]
[338419651,1726626638573,-500.0,0.00019178,2]
[338419652,1726626638582,-500.0,0.00019178,2]
[338419653,1726626638591,-10328.85,0.00019178,2]
[338419654,1726626638603,-1295.28,0.00019178,2]
[338419655,1726626638612,-2111.43,0.00019178,2]
[338419656,1726626638621,-1217.05,0.00019178,2]
[338419657,1726626638630,-500.0,0.00019178,2]
[338419658,1726626638639,-784.88,0.00019178,2]
[338419659,1726626638649,-566.58,0.00019178,2]
[338419660,1726626638659,-498.13597431,0.00019178,2]
[338419661,1726626638668,-500.0,0.00019178,2]
[338419662,1726626638679,-500.0,0.00019178,2]
[338419663,1726626638688,-1349.65,0.00019178,2]
[338419664,1726626638697,-506.91216179,0.00019178,2]
[338419665,1726626638706,-899.23,0.00019178,2]
[338419666,1726626638715,-500.0,0.00019178,2]
[338419667,1726626638725,-500.0,0.00019178,2]
[338419668,1726626638735,-2544.42,0.00019178,2]
[338419669,1726626638744,-500.0,0.00019178,2]
[338419670,1726626638753,-500.0,0.00019178,2]
[338419671,1726626638763,-501.45548129,0.00019178,2]
[338419672,1726626638772,-500.0,0.00019178,2]
[338419673,1726626638781,-1969.18,0.00019178,2]
[338419674,1726626638790,-355.53956789,0.00019178,2]
[338419675,1726626638798,-500.0,0.00019178,2]
[338419676,1726626638809,-12411.55,0.00019178,2]
[338419677,1726626638824,-500.0,0.00019178,2]
[338419678,1726626638834,-500.0,0.00019178,2]
[338419679,1726626638843,-1036.87,0.00019178,2]
[338419680,1726626638852,-500.0,0.00019178,2]
[338419681,1726626638861,-500.0,0.00019178,2]
[338419682,1726626638870,-221.17279696,0.00019451,2]
[338419683,1726626638881,-461.24178233,0.00019451,2]
[338419684,1726626638890,-500.0,0.00019451,2]
[338419685,1726626638900,-501.32205176,0.00019451,2]
[338419686,1726626638908,-500.0,0.00019451,2]
[338419687,1726626638918,-499.81783429,0.00019451,2]
[338419688,1726626638927,-500.0,0.00019451,2]
[338419689,1726626638937,-650.0,0.00019451,2]
[338419690,1726626638946,-500.0,0.00019451,2]
[338419691,1726626638955,-500.0,0.00019452,2]
[338419692,1726626638964,-500.0,0.00019452,2]
[338419693,1726626638973,-1095.0,0.00019452,2]
[338419694,1726626638982,-500.0,0.00019452,2]
[338419695,1726626638991,-824.77,0.00019452,2]
[338419696,1726626639001,-500.0,0.00019452,2]
[338419697,1726626639010,-590.68,0.00019452,2]
[338419698,1726626639019,-500.0,0.00019452,2]
[338419699,1726626639028,-500.0,0.00019452,2]
[338419700,1726626639037,-1513.88,0.00019452,2]
[338419701,1726626639046,-500.0,0.00019452,2]
[338419702,1726626639055,-500.0,0.00019452,2]
[338419703,1726626639064,-641.66,0.00019452,2]
[338419704,1726626639073,-501.22010236,0.00019452,2]
[338419705,1726626639082,-3114.76,0.00019452,2]
[338419706,1726626639092,-1897.23,0.00019452,2]
[338419707,1726626639101,-2673.28,0.00019452,2]
[338419708,1726626639110,-1732.79,0.00019452,2]
[338419709,1726626639119,-500.0,0.00019452,2]
[338419710,1726626639129,-86345.18,0.00019452,2]
[338419711,1726626639138,-1318.86,0.00019452,2]
[338419712,1726626639148,-530.15715267,0.00019452,2]
[338419713,1726626639157,-2145.47,0.00019452,2]
[338419714,1726626639166,-938.63,0.00019452,2]
[338419715,1726626639176,-563.27,0.00019452,2]
[338419716,1726626639187,-761.25,0.00019452,2]
[338419717,1726626639197,-500.0,0.00019452,2]
[338419718,1726626639206,-500.0,0.00019452,2]
[338419719,1726626639215,-500.0,0.00019452,2]
[338419720,1726626639224,-1100.65,0.00019452,2]
[338419721,1726626639234,-2100.33,0.00019452,2]
[338419722,1726626639243,-500.0,0.00019452,2]
[338419723,1726626639253,-811.62,0.00019452,2]
[338419724,1726626639265,-1170.35,0.00019452,2]
[338419725,1726626639276,-677.29,0.00019452,2]
[338419726,1726626639286,-500.0,0.00019452,2]
[338419727,1726626639298,-500.0,0.00019452,2]
[338419728,1726626639309,-914.74,0.00019452,2]
[338419729,1726626639323,-2102.86,0.00019452,2]
[338419730,1726626639333,-500.0,0.00019452,2]
[338419731,1726626639342,-500.0,0.00019452,2]
[338419732,1726626639351,-500.0,0.00019452,2]
[338419733,1726626639362,-10328.85,0.00019452,2]
[338419734,1726626639370,-1295.28,0.00019452,2]
[338419735,1726626639380,-2111.43,0.00019452,2]
[338419736,1726626639389,-1217.05,0.00019452,2]
[338419737,1726626639398,-500.0,0.00019452,2]
[338419738,1726626639410,-784.88,0.00019452,2]
[338419739,1726626639421,-566.58,0.00019452,2]
[338419740,1726626639431,-500.0,0.00019452,2]
[338419741,1726626639441,-502.18552912,0.00019452,2]
[338419742,1726626639450,-1349.65,0.00019452,2]
[338419743,1726626639459,-899.23,0.00019452,2]
[338419744,1726626639469,-500.0,0.00019452,2]
[338419745,1726626639478,-2544.42,0.00019452,2]
[338419746,1726626639490,-500.0,0.00019452,2]
[338419747,1726626639501,-500.0,0.00019452,2]
[338419748,1726626639511,-500.0,0.00019452,2]
[338419749,1726626639522,-1969.18,0.00019452,2]
[338419750,1726626639533,-500.0,0.00019452,2]
[338419751,1726626639543,-500.0,0.00019452,2]
[338419752,1726626639552,-12411.55,0.00019452,2]
[338419753,1726626639562,-500.0,0.00019452,2]
[338419754,1726626639574,-1036.87,0.00019452,2]
[338419755,1726626639583,-500.0,0.00019452,2]
[338419756,1726626639592,-159.731594,0.00019465,2]
[338419757,1726626639606,-250.0,0.00019507,2]
[338419758,1726626639615,-163.510644,0.00019592,2]
[338419759,1726626639624,-161.033875,0.00019612,2]
[338419760,1726626639634,-161.033875,0.00019676,2]
[338419761,1726626639648,-500.0,0.00019726,2]
[338419762,1726626639658,-500.0,0.00019726,2]
[338419763,1726626639668,-1095.0,0.00019726,2]
[338419764,1726626639679,-500.0,0.00019726,2]
[338419766,1726626639689,-824.77,0.00019726,2]
[338419767,1726626639698,-266.51121035,0.00019726,2]
[338419768,1726626639707,-590.68,0.00019726,2]
[338419769,1726626639719,-237.21509142,0.00019726,2]
[338419770,1726626639730,-500.0,0.00019726,2]
[338419771,1726626639742,-1513.88,0.00019726,2]
[338419772,1726626639753,-500.0,0.00019726,2]
[338419773,1726626639762,-500.0,0.00019726,2]
[338419774,1726626639771,-641.66,0.00019726,2]
[338419775,1726626639780,-3114.76,0.00019726,2]
[338419776,1726626639790,-1897.23,0.00019726,2]
[338419777,1726626639800,-2673.28,0.00019726,2]
[338419778,1726626639809,-1732.79,0.00019726,2]
[338419779,1726626639821,-500.0,0.00019726,2]
[338419780,1726626639831,-86345.18,0.00019726,2]
[338419781,1726626639841,-1318.86,0.00019726,2]
[338419782,1726626639851,-2145.47,0.00019726,2]
[338419783,1726626639860,-938.63,0.00019726,2]
[338419784,1726626639870,-563.27,0.00019726,2]
[338419785,1726626639879,-761.25,0.00019726,2]
[338419786,1726626639888,-500.0,0.00019726,2]
[338419787,1726626639898,-500.0,0.00019726,2]
[338419788,1726626639907,-500.0,0.00019726,2]
[338419789,1726626639919,-1100.65,0.00019726,2]
[338419790,1726626639931,-2100.33,0.00019726,2]
[338419794,1726626640132,-500.0,0.00019726,2]
[338419795,1726626640142,-811.62,0.00019726,2]
[338419796,1726626640152,-1170.35,0.00019726,2]
[338419797,1726626640161,-677.29,0.00019726,2]
[338419798,1726626640170,-500.0,0.00019726,2]
[338419799,1726626640180,-500.0,0.00019726,2]
[338419800,1726626640190,-914.74,0.00019726,2]
[338419801,1726626640200,-2102.86,0.00019726,2]
[338419802,1726626640211,-500.0,0.00019726,2]
[338419803,1726626640220,-500.0,0.00019726,2]
[338419804,1726626640229,-500.0,0.00019726,2]
[338419805,1726626640239,-10328.85,0.00019726,2]
[338419806,1726626640248,-1295.28,0.00019726,2]
[338419807,1726626640257,-2111.43,0.00019726,2]
[338419808,1726626640265,-1217.05,0.00019726,2]
[338419809,1726626640274,-500.0,0.00019726,2]
[338419810,1726626640283,-784.88,0.00019726,2]
[338419811,1726626640292,-566.58,0.00019726,2]
[338419812,1726626640301,-500.0,0.00019726,2]
[338419813,1726626640310,-1349.65,0.00019726,2]
[338419814,1726626640322,-899.23,0.00019726,2]
[338419815,1726626640331,-500.0,0.00019726,2]
[338419816,1726626640340,-2544.42,0.00019726,2]
[338419817,1726626640349,-500.0,0.00019726,2]
[338419818,1726626640358,-500.0,0.00019726,2]
[338419819,1726626640368,-500.0,0.00019726,2]
[338419820,1726626640377,-1969.18,0.00019726,2]
[338419821,1726626640386,-500.0,0.00019726,2]
[338419822,1726626640395,-500.0,0.00019726,2]
[338419823,1726626640405,-12411.55,0.00019726,2]
[338419824,1726626640414,-500.0,0.00019726,2]
[338419825,1726626640423,-1036.87,0.00019726,2]
[338419826,1726626640432,-161.033875,0.0001974,2]
[338419827,1726626640441,-161.033875,0.00019804,2]
[338419828,1726626640451,-161.033875,0.00019867,2]
[338419829,1726626640461,-161.033875,0.00019931,2]
[338419830,1726626640470,-161.033875,0.00019995,2]
[338419831,1726626640478,-500.0,0.0002,2]
[338419832,1726626640488,-175.36589755,0.0002,2]
[338419833,1726626640497,-1095.0,0.0002,2]
[338419834,1726626640507,-500.0,0.0002,2]
[338419835,1726626640516,-824.77,0.0002,2]
[338419836,1726626640525,-590.68,0.0002,2]
[338419837,1726626640535,-500.0,0.0002,2]
[338419838,1726626640544,-1513.88,0.0002,2]
[338419839,1726626640555,-583.59718165,0.0002,2]
[338419840,1726626640566,-500.0,0.0002,2]
[338419841,1726626640575,-641.66,0.0002,2]
[338419842,1726626640585,-3114.76,0.0002,2]
[338419843,1726626640594,-1897.23,0.0002,2]
[338419844,1726626640606,-2673.28,0.0002,2]
[338419845,1726626640616,-1732.79,0.0002,2]
[338419846,1726626640626,-500.0,0.0002,2]
[338419847,1726626640636,-86345.18,0.0002,2]
[338419848,1726626640647,-1318.86,0.0002,2]
[338419849,1726626640658,-938.63,0.0002,2]
[338419850,1726626640670,-2145.47,0.0002,2]
[338419851,1726626640680,-563.27,0.0002,2]
[338419852,1726626640690,-761.25,0.0002,2]
[338419853,1726626640699,-500.0,0.0002,2]
[338419854,1726626640708,-500.0,0.0002,2]
[338419855,1726626640718,-500.0,0.0002,2]
[338419856,1726626640727,-1100.65,0.0002,2]
[338419857,1726626640737,-2100.33,0.0002,2]
[338419858,1726626640746,-500.0,0.0002,2]
[338419859,1726626640757,-811.62,0.0002,2]
[338419860,1726626640768,-1170.35,0.0002,2]
[338419861,1726626640780,-677.29,0.0002,2]
[338419862,1726626640791,-500.0,0.0002,2]
[338419863,1726626640800,-500.0,0.0002,2]
[338419864,1726626640809,-914.74,0.0002,2]
[338419865,1726626640820,-2102.86,0.0002,2]
[338419866,1726626640829,-500.0,0.0002,2]
[338419867,1726626640838,-500.0,0.0002,2]
[338419868,1726626640848,-358.4850641,0.0002,2]
[338419869,1726626640860,-10328.85,0.0002,2]
[338419870,1726626640869,-1295.28,0.0002,2]
[338419871,1726626640878,-2111.43,0.0002,2]
[338419872,1726626640887,-1217.05,0.0002,2]
[338419873,1726626640896,-253.59722545,0.0002,2]
[338419874,1726626640905,-784.88,0.0002,2]
[338419875,1726626640914,-566.58,0.0002,2]
[338419876,1726626640923,-500.0,0.0002,2]
[338419877,1726626640932,-1349.65,0.0002,2]
[338419878,1726626640941,-899.23,0.0002,2]
[338419879,1726626640950,-500.0,0.0002,2]
[338419880,1726626640960,-2544.42,0.0002,2]
[338419881,1726626640969,-500.0,0.0002,2]
[338419882,1726626640978,-500.0,0.0002,2]
[338419883,1726626640987,-500.0,0.0002,2]
[338419884,1726626640996,-1969.18,0.0002,2]
[338419885,1726626641005,-500.0,0.0002,2]
[338419886,1726626641014,-500.0,0.0002,2]
[338419887,1726626641023,-12411.55,0.0002,2]
[338419888,1726626641033,-1036.87,0.0002,2]
[338419889,1726626641042,-501.11294889,0.0002,2]
[338419890,1726626641051,-500.0,0.00020043,2]
[338419891,1726626641061,-504.20016458,0.00020043,2]
[338419892,1726626641070,-161.033875,0.00020059,2]
[338419893,1726626641079,-161.033875,0.00020123,2]
[338419894,1726626641088,-161.033875,0.00020187,2]
[338419895,1726626641097,-161.033875,0.00020251,2]
[338419896,1726626641106,-500.0,0.00020273,2]
[338419897,1726626641115,-1095.0,0.00020273,2]
[338419898,1726626641124,-500.0,0.00020273,2]
[338419899,1726626641133,-824.77,0.00020273,2]
[338419900,1726626641142,-590.68,0.00020273,2]
[338419901,1726626641152,-500.0,0.00020273,2]
[338419902,1726626641161,-1513.88,0.00020273,2]
[338419903,1726626641170,-500.0,0.00020273,2]
[338419904,1726626641180,-641.66,0.00020273,2]
[338419905,1726626641189,-3114.76,0.00020273,2]